fUST/lending_fUST_20240106
["ID","MTS","AMOUNT","RATE_DAILY","PERIOD"]
[310321306,1704472239132,-500.0,0.00035616,7]
[310321307,1704472239141,-566.54,0.00035616,7]
[310321308,1704472239150,-500.0,0.00035616,7]
[310321309,1704472239160,-500.0,0.00035616,7]
[310321310,1704472239169,-500.0,0.00035616,7]
[310321311,1704472239179,-500.0,0.00035616,7]
[310321312,1704472239189,-955.09,0.00035616,7]
[310321313,1704472239199,-500.0,0.00035616,7]
[310321314,1704472239209,-1853.6,0.00035616,7]
[310321315,1704472239219,-717.58,0.00035616,7]
[310321316,1704472239228,-500.0,0.00035616,7]
[310321317,1704472239237,-28875.84,0.00035616,3]
[310321318,1704472239247,-667.37,0.00035616,7]
[310321319,1704472239257,-4194.19,0.00035616,7]
[310321320,1704472239266,-500.0,0.00035616,7]
[310321321,1704472239276,-500.0,0.00035616,7]
[310321322,1704472239285,-500.0,0.00035616,7]
[310321323,1704472239295,-500.0,0.00035616,7]
[310321324,1704472239305,-500.0,0.00035616,7]
[310321325,1704472239314,-500.0,0.00035616,7]
[310321326,1704472239324,-3119.25,0.00035616,7]
[310321327,1704472239333,-500.0,0.00035616,7]
[310321328,1704472239343,-500.0,0.00035616,7]
[310321329,1704472239353,-500.0,0.00035616,7]
[310321330,1704472239363,-500.0,0.00035616,7]
[310321331,1704472239372,-500.0,0.00035616,7]
[310321332,1704472239380,-1000.0,0.0003574,2]
[310321333,1704472239390,-500.0,0.0003574,3]
[310321334,1704472239399,-1638.503652,0.00035798,2]
[310321335,1704472239409,-173.11378109,0.00035889,4]
[310321336,1704472239419,-521.42205155,0.00035889,4]
[310321337,1704472239428,-368.95353439,0.00035889,4]
[310321338,1704472239438,-861.21402447,0.00035889,4]
[310321339,1704472239448,-599.05733467,0.00035889,4]
[310321340,1704472239459,-515.50501771,0.00035889,7]
[310321341,1704472239468,-500.0,0.0003589,7]
[310321342,1704472239478,-500.0,0.0003589,7]
[310321343,1704472239488,-500.0,0.0003589,7]
[310321344,1704472239497,-500.0,0.0003589,7]
[310321345,1704472239507,-500.0,0.0003589,7]
[310321346,1704472239517,-500.0,0.0003589,7]
[310321347,1704472239526,-500.0,0.0003589,7]
[310321348,1704472239536,-500.0,0.0003589,7]
[310321349,1704472239546,-500.0,0.0003589,7]
[310321350,1704472239557,-500.0,0.0003589,7]
[310321351,1704472239566,-500.0,0.0003589,7]
[310321352,1704472239575,-500.0,0.0003589,7]
[310321353,1704472239585,-450.4775009,0.0003589,7]
[310321354,1704472239594,-500.0,0.0003589,7]
[310321355,1704472239603,-500.0,0.0003589,7]
[310321356,1704472239613,-717.36,0.0003589,7]
[310321357,1704472239622,-500.0,0.0003589,7]
[310321358,1704472239631,-500.0,0.0003589,7]
[310321360,1704472239641,-500.0,0.0003589,7]
[310321361,1704472239651,-500.0,0.0003589,7]
[310321362,1704472239660,-500.0,0.0003589,7]
[310321363,1704472239668,-1725.02,0.0003589,7]
[310321364,1704472239678,-572.07,0.0003589,7]
[310321365,1704472239687,-1029.12,0.0003589,7]
[310321366,1704472239696,-500.0,0.0003589,7]
[310321367,1704472239705,-500.0,0.0003589,7]
[310321368,1704472239715,-500.0,0.0003589,7]
[310321369,1704472239724,-566.54,0.0003589,7]
[310321370,1704472239733,-500.0,0.0003589,7]
[310321371,1704472239743,-500.0,0.0003589,7]
[310321372,1704472239753,-500.0,0.0003589,7]
[310321373,1704472239762,-955.09,0.0003589,7]
[310321374,1704472239772,-1853.6,0.0003589,7]
[310321375,1704472239782,-717.58,0.0003589,7]
[310321376,1704472239791,-500.0,0.0003589,7]
[310321377,1704472239801,-28875.84,0.0003589,3]
[310321378,1704472239810,-667.37,0.0003589,7]
[310321379,1704472239819,-4194.19,0.0003589,7]
[310321381,1704472239829,-500.0,0.0003589,7]
[310321383,1704472239838,-523.71661364,0.0003589,7]
[310321384,1704472239847,-500.0,0.0003589,7]
[310321385,1704472239856,-3119.25,0.0003589,7]
[310321386,1704472239865,-519.46116191,0.0003589,7]
[310321387,1704472239874,-500.0,0.0003589,7]
[310321388,1704472239883,-500.0,0.0003589,7]
[310321389,1704472239892,-500.0,0.0003589,7]
[310321390,1704472239901,-385.075903,0.00036083,2]
[310321391,1704472239911,-153.0,0.0003611,2]
[310321392,1704472239919,-153.0,0.0003611,2]
[310321393,1704472239929,-153.0,0.0003611,2]
[310321394,1704472239939,-153.0,0.0003611,2]
[310321395,1704472239948,-153.0,0.0003611,2]
[310321396,1704472239958,-153.0,0.0003611,2]
[310321397,1704472239967,-155.1035994,0.0003611,2]
[310321398,1704472239976,-153.0,0.0003611,2]
[310321399,1704472239985,-153.0,0.0003611,2]
[310321400,1704472239994,-153.0,0.0003611,2]
[310321401,1704472240004,-153.0,0.0003611,2]
[310321402,1704472240013,-153.0,0.0003611,2]
[310321403,1704472240022,-153.0,0.0003611,2]
[310321404,1704472240031,-153.0,0.0003611,2]
[310321405,1704472240041,-153.0,0.0003611,2]
[310321406,1704472240050,-758.72140361,0.00036152,2]
[310321407,1704472240060,-431.91077541,0.00036152,2]
[310321408,1704472240068,-439.46320109,0.00036152,2]
[310321409,1704472240078,-4326.94731851,0.00036161,4]
[310321410,1704472240088,-312.86319078,0.00036162,4]
[310321411,1704472240097,-659.74626242,0.00036163,4]
[310321412,1704472240106,-311.57822213,0.00036163,2]
[310321413,1704472240116,-229.9574343,0.00036163,4]
[310321414,1704472240125,-685.71824329,0.00036163,4]
[310321415,1704472240135,-2445.08878127,0.00036164,2]
[310321416,1704472240144,-6360.31255279,0.00036164,30]
[310321417,1704472240153,-500.0,0.00036164,7]
[310321418,1704472240163,-500.0,0.00036164,7]
[310321419,1704472240172,-500.0,0.00036164,7]
[310321420,1704472240181,-500.0,0.00036164,7]
[310321421,1704472240190,-500.0,0.00036164,7]
[310321422,1704472240200,-500.0,0.00036164,7]
[310321423,1704472240210,-500.0,0.00036164,7]
[310321424,1704472240219,-500.0,0.00036164,7]
[310321425,1704472240229,-500.0,0.00036164,7]
[310321426,1704472240238,-206.3840092,0.00036164,7]
[310321427,1704472240247,-500.0,0.00036164,7]
[310321428,1704472240257,-717.36,0.00036164,7]
[310321429,1704472240267,-500.0,0.00036164,7]
[310321430,1704472240277,-500.0,0.00036164,7]
[310321431,1704472240287,-3002.11024084,0.00036164,4]
[310321432,1704472240297,-500.0,0.00036164,7]
[310321433,1704472240307,-685.60348625,0.00036164,4]
[310321434,1704472240317,-1725.02,0.00036164,7]
[310321435,1704472240328,-2073.09985719,0.00036164,4]
[310321436,1704472240340,-366.86331613,0.00036164,4]
[310321437,1704472240350,-572.07,0.00036164,7]
[310321438,1704472240359,-409.03286702,0.00036164,2]
[310321439,1704472240370,-1029.12,0.00036164,7]
[310321440,1704472240380,-500.0,0.00036164,7]
[310321441,1704472240390,-500.0,0.00036164,7]
[310321442,1704472240399,-500.0,0.00036164,7]
[310321443,1704472240408,-566.54,0.00036164,7]
[310321444,1704472240419,-500.0,0.00036164,7]
[310321445,1704472240429,-500.0,0.00036164,7]
[310321447,1704472240438,-500.0,0.00036164,7]
[310321448,1704472240448,-955.09,0.00036164,7]
[310321449,1704472240462,-1853.6,0.00036164,7]
[310321450,1704472240472,-717.58,0.00036164,7]
[310321451,1704472240481,-500.0,0.00036164,7]
[310321452,1704472240491,-28875.84,0.00036164,3]
[310321453,1704472240504,-667.37,0.00036164,7]
[310321454,1704472240513,-4194.19,0.00036164,7]
[310321455,1704472240523,-500.0,0.00036164,7]
[310321456,1704472240533,-622.31394564,0.00036164,7]
[310321457,1704472240542,-3119.25,0.00036164,7]
[310321458,1704472240552,-201.42102991,0.00036164,7]
[310321459,1704472240562,-500.0,0.00036164,7]
[310321460,1704472240571,-500.0,0.00036164,7]
[310321461,1704472240580,-500.0,0.000363,30]
[310321462,1704472240590,-500.0,0.000363,15]
[310321463,1704472240599,-500.0,0.000363,7]
[310321464,1704472240609,-500.0,0.000363,2]
[310321466,1704472240618,-500.0,0.000363,2]
[310321468,1704472240627,-4699.11406579,0.00036434,4]
[310321469,1704472240637,-388.80648532,0.00036436,4]
[310321470,1704472240646,-310.21473617,0.00036436,4]
[310321471,1704472240656,-855.25560948,0.00036437,4]
[310321472,1704472240666,-252.53534228,0.00036438,7]
[310321474,1704472240675,-500.0,0.00036438,7]
[310321476,1704472240684,-500.0,0.00036438,7]
[310321477,1704472240693,-500.0,0.00036438,7]
[310321479,1704472240703,-500.0,0.00036438,7]
[310321481,1704472240713,-500.0,0.00036438,7]
[310321482,1704472240722,-500.0,0.00036438,7]
[310321483,1704472240731,-500.0,0.00036438,7]
[310321484,1704472240741,-500.0,0.00036438,7]
[310321485,1704472240750,-500.0,0.00036438,7]
[310321486,1704472240760,-717.36,0.00036438,7]
[310321487,1704472240769,-500.0,0.00036438,7]
[310321488,1704472240779,-500.0,0.00036438,7]
[310321489,1704472240788,-564.16201128,0.00036438,7]
[310321490,1704472240798,-1725.02,0.00036438,7]
[310321491,1704472240808,-572.07,0.00036438,7]
[310321492,1704472240817,-1029.12,0.00036438,7]
[310321493,1704472240826,-500.0,0.00036438,7]
[310321494,1704472240836,-500.0,0.00036438,7]
[310321495,1704472240845,-500.0,0.00036438,7]
[310321496,1704472240855,-566.54,0.00036438,7]
[310321497,1704472240864,-500.0,0.00036438,7]
[310321498,1704472240874,-500.0,0.00036438,7]
[310321499,1704472240883,-500.0,0.00036438,7]
[310321500,1704472240892,-955.09,0.00036438,7]
[310321501,1704472240902,-1853.6,0.00036438,7]
[310321502,1704472240911,-717.58,0.00036438,7]
[310321503,1704472240921,-500.0,0.00036438,7]
[310321504,1704472240931,-28875.84,0.00036438,3]
[310321505,1704472241037,-667.37,0.00036438,7]
[310321506,1704472241047,-4194.19,0.00036438,7]
[310321507,1704472241056,-500.0,0.00036438,7]
[310321508,1704472241066,-3119.25,0.00036438,7]
[310321509,1704472241075,-500.0,0.00036438,7]
[310321510,1704472241084,-500.0,0.00036438,7]
[310321511,1704472241094,-500.0,0.00036712,7]
[310321512,1704472241103,-500.0,0.00036712,7]
[310321513,1704472241112,-500.0,0.00036712,7]
[310321514,1704472241121,-394.6573273,0.00036712,7]
[310321515,1704472241130,-500.0,0.00036712,7]
[310321516,1704472241139,-500.0,0.00036712,7]
[310321517,1704472241149,-500.0,0.00036712,7]
[310321518,1704472241158,-500.0,0.00036712,7]
[310321519,1704472241167,-500.0,0.00036712,7]
[310321520,1704472241177,-717.36,0.00036712,7]
[310321521,1704472241186,-500.0,0.00036712,7]
[310321522,1704472241195,-500.0,0.00036712,7]
[310321523,1704472241205,-1725.02,0.00036712,7]
[310321524,1704472241214,-572.07,0.00036712,7]
[310321525,1704472241224,-1029.12,0.00036712,7]
[310321526,1704472241233,-500.0,0.00036712,7]
[310321527,1704472241242,-500.0,0.00036712,7]
[310321528,1704472241252,-500.0,0.00036712,7]
[310321529,1704472241262,-566.54,0.00036712,7]
[310321530,1704472241271,-500.0,0.00036712,7]
[310321531,1704472241282,-500.0,0.00036712,7]
[310321532,1704472241291,-500.0,0.00036712,7]
[310321533,1704472241301,-955.09,0.00036712,7]
[310321534,1704472241311,-1853.6,0.00036712,7]
[310321535,1704472241321,-717.58,0.00036712,7]
[310321536,1704472241330,-500.0,0.00036712,7]
[310321537,1704472241340,-28875.84,0.00036712,3]
[310321538,1704472241349,-667.37,0.00036712,7]
[310321539,1704472241360,-4194.19,0.00036712,7]
[310321540,1704472241369,-246.62024488,0.00036712,7]
[310321541,1704472241379,-3119.25,0.00036712,7]
[310321542,1704472241388,-500.0,0.00036712,7]
[310321543,1704472241398,-500.0,0.00036712,7]
[310321544,1704472241408,-150.66221919,0.00036917,4]
[310321545,1704472241419,-500.0,0.00036986,7]
[310321546,1704472241428,-500.0,0.00036986,7]
[310321547,1704472241438,-500.0,0.00036986,7]
[310321548,1704472241449,-500.0,0.00036986,7]
[310321549,1704472241460,-500.0,0.00036986,7]
[310321550,1704472241469,-500.0,0.00036986,7]
[310321551,1704472241479,-500.0,0.00036986,7]
[310321553,1704472241488,-500.0,0.00036986,7]
[310321554,1704472241498,-717.36,0.00036986,7]
[310321555,1704472241507,-500.0,0.00036986,7]
[310321556,1704472241517,-500.0,0.00036986,7]
[310321557,1704472241526,-1725.02,0.00036986,7]
[310321558,1704472241536,-572.07,0.00036986,7]
[310321559,1704472241545,-1029.12,0.00036986,7]
[310321560,1704472241555,-500.0,0.00036986,7]
[310321561,1704472241565,-500.0,0.00036986,7]
[310321562,1704472241574,-500.0,0.00036986,7]
[310321563,1704472241584,-566.54,0.00036986,7]
[310321564,1704472241593,-500.0,0.00036986,7]
[310321565,1704472241602,-500.0,0.00036986,7]
[310321566,1704472241611,-500.0,0.00036986,7]
[310321567,1704472241621,-955.09,0.00036986,7]
[310321568,1704472241630,-1853.6,0.00036986,7]
[310321569,1704472241639,-717.58,0.00036986,7]
[310321570,1704472241649,-500.0,0.00036986,7]
[310321571,1704472241658,-28875.84,0.00036986,3]
[310321572,1704472241667,-667.37,0.00036986,7]
[310321573,1704472241676,-4194.19,0.00036986,7]
[310321574,1704472241685,-3119.25,0.00036986,7]
[310321575,1704472241695,-500.0,0.00036986,7]
[310321576,1704472241705,-500.0,0.00036986,7]
[310321577,1704472241714,-2198.71546308,0.00037,7]
[310321578,1704472241723,-1000.0,0.00037,37]
[310321579,1704472241732,-2916.03,0.00037,2]
[310321580,1704472241741,-1500.0,0.00037,2]
[310321581,1704472241750,-1500.0,0.00037,2]
[310321582,1704472241759,-1500.0,0.00037,2]
[310321583,1704472241768,-1500.0,0.00037,2]
[310321584,1704472241777,-1500.0,0.00037,2]
[310321585,1704472241786,-1556.78,0.00037,2]
[310321586,1704472241797,-249.999999,0.00037,2]
[310321587,1704472241806,-1638.503652,0.00037075,2]
[310321588,1704472241815,-298.327248,0.000372,9]
[310321589,1704472241825,-1000.0,0.0003721,30]
[310321590,1704472241835,-1000.0,0.0003721,15]
[310321591,1704472241846,-2650.27448344,0.00037238,4]
[310321592,1704472241856,-500.0,0.0003726,7]
[310321593,1704472241866,-500.0,0.0003726,7]
[310321594,1704472241876,-500.0,0.0003726,7]
[310321595,1704472241885,-500.0,0.0003726,7]
[310321596,1704472241894,-500.0,0.0003726,7]
[310321597,1704472241904,-500.0,0.0003726,7]
[310321598,1704472241913,-500.0,0.0003726,7]
[310321599,1704472241921,-610.77686538,0.0003726,7]
[310321600,1704472241931,-717.36,0.0003726,7]
[310321601,1704472241940,-262.75038786,0.0003726,7]
[310321602,1704472241950,-500.0,0.0003726,7]
[310321603,1704472241959,-1725.02,0.0003726,7]
[310321604,1704472241968,-572.07,0.0003726,7]
[310321605,1704472241977,-1029.12,0.0003726,7]
[310321606,1704472241987,-500.0,0.0003726,7]
[310321607,1704472241996,-500.0,0.0003726,7]
[310321608,1704472242005,-500.0,0.0003726,7]
[310321609,1704472242014,-566.54,0.0003726,7]
[310321610,1704472242023,-500.0,0.0003726,7]
[310321611,1704472242033,-500.0,0.0003726,7]
[310321612,1704472242042,-578.81630951,0.0003726,7]
[310321613,1704472242052,-955.09,0.0003726,7]
[310321614,1704472242061,-1853.6,0.0003726,7]
[310321615,1704472242071,-717.58,0.0003726,7]
[310321616,1704472242080,-189.56209509,0.0003726,7]
[310321617,1704472242090,-6651.82511584,0.0003726,3]
[310321618,1704472242157,-2566.71909432,0.0003726,3]
[310321619,1704472242330,-155.17100286,0.00023288,2]
[310321620,1704472242344,-254.0,0.00035616,2]
[310321621,1704472242356,-1833.23963616,0.0003726,3]
[310321643,1704472243455,-370.1,0.00035616,7]
[310321644,1704472243469,-420.53,0.00035616,7]
[310321645,1704472243480,-790.63,0.0003589,7]
[310321646,1704472243491,-15819.33053265,0.0003726,3]
[310321648,1704472244765,545.76565795,0.00016274,2]
[310321654,1704472246072,9135.54490687,0.00016274,2]
[310321663,1704472246318,1464.84555445,0.00013555,2]
[310321668,1704472246519,10270.13461004,0.00016274,2]
[310321669,1704472248494,3183.28659255,0.00016274,2]
[310321671,1704472249320,3208.64110723,0.00016274,2]
[310321672,1704472249438,255.25500706,0.00016274,2]
[310321673,1704472250986,1522.21245058,0.00016274,2]
[310321674,1704472264705,10270.13461004,0.00016274,2]
[310321675,1704472267270,2689.24076345,0.00016274,2]
[310321676,1704472268968,1616.43911307,0.00016274,2]
[310321677,1704472286518,5089.64298415,0.00016274,2]
[310321678,1704472358919,738.29275599,0.00016274,2]
[310321679,1704472662780,1351.60839685,0.00016274,5]
[310321695,1704473075374,45419.54312994,0.00016274,2]
[310321696,1704473075406,21014.56464382,0.00016274,2]
[310321697,1704473078685,2376.35129707,0.00016393,2]
[310321698,1704473083023,424.93023673,0.00016274,2]
[310321699,1704473083723,297.85225266,0.00016274,2]
[310321700,1704473084598,4191.0104798,0.00016274,2]
[310321701,1704473099700,226.12547227,0.00016274,2]
[310321702,1704473103842,-5000.0,0.00017223,2]
[310321703,1704473103957,-5000.0,0.00017223,2]
[310321704,1704473104123,-5000.0,0.00017223,2]
[310321705,1704473104296,-5000.0,0.00017223,2]
[310321706,1704473104435,-4660.3531215,0.00017223,2]
[310321707,1704473130445,-2256.3840164,0.00017226,2]
[310321708,1704473130624,-46.0486534,0.00017226,2]
[310321709,1704473161780,-245.0,0.00017216,2]
[310321710,1704473162087,-5.0,0.00017216,2]
[310321750,1704473432722,-1464.84555445,0.00018186,2]
[310321753,1704473432732,-223.7836429,0.00018187,2]
[310321756,1704473432742,-154.86062544,0.00018188,3]
[310321759,1704473432751,-7856.7609539,0.00018188,2]
[310321762,1704473432761,-26389.64216715,0.00018188,2]
[310321765,1704473432771,-13678.83620673,0.00018189,2]
[310321768,1704473432781,-559.92585863,0.00018189,2]
[310321771,1704473432791,-20811.63739219,0.00018189,2]
[310321774,1704473432800,-3148.14500459,0.00018189,2]
[310321777,1704473432809,-1679.18612823,0.00018189,2]
[310321780,1704473432819,-1353.9965579,0.0001819,2]
[310321927,1704473439079,-2108.85898852,0.00018189,2]
[310321928,1704473439091,-307.05277143,0.00018189,2]
[310321929,1704473439102,-4020.70103875,0.00018189,2]
[310321930,1704473439114,-13204.37694658,0.00018189,2]
[310321931,1704473439124,-6581.87459751,0.0001819,2]
[310321932,1704473439133,-606.05349002,0.0001819,2]
[310321933,1704473439142,-155.03031538,0.00018199,2]
[310321934,1704473439152,-309.6594025,0.00018228,2]
[310321936,1704473439162,-154.87609912,0.00018233,2]
[310321938,1704473439172,-33283.4465121,0.00018237,2]
[310321940,1704473439181,-4300.0,0.00018237,2]
[310321942,1704473439190,-586.767531,0.00019178,2]
[310321944,1704473439199,-342.35080036,0.0002,2]
[310321946,1704473439208,-300.0,0.0002,2]
[310321948,1704473439219,-586.767531,0.00020521,2]
[310321950,1704473439229,-1819.84465006,0.00021,2]
[310321952,1704473439238,-9907.49920413,0.00023,2]
[310321954,1704473439247,-166.03698916,0.00023287,2]
[310321956,1704473439256,-200.0,0.00024658,2]
[310321958,1704473439265,-380.0,0.00024658,2]
[310321959,1704473439275,-2484.20866103,0.00024999,2]
[310321961,1704473439284,-3003.59607844,0.00025,2]
[310321963,1704473439293,-613.26381082,0.00025,2]
[310321965,1704473439302,-2482.39965936,0.00025,2]
[310321967,1704473439312,-1317.46,0.00027397,3]
[310321969,1704473439321,-1097.89,0.00027397,3]
[310321971,1704473439331,-475.4838903,0.00029999,2]
[310321973,1704473439340,-781.90839515,0.0003,4]
[310321975,1704473439349,-6497.99760883,0.00032,2]
[310322242,1704473442139,-11189.46528137,0.00032,2]
[310322245,1704473442155,-1438.41580148,0.00032,2]
[310322247,1704473442167,-3450.86822415,0.00032,2]
[310322249,1704473442179,-17423.25308417,0.00032,2]
[310322252,1704473442189,-914.9,0.00033988,3]
[310322253,1704473442198,-1211.64702523,0.00033996,4]
[310322256,1704473442209,-20831.85137104,0.00033998,2]
[310322257,1704473442219,-1000.0,0.00034,7]
[310322259,1704473442229,-23873.86800067,0.00034,2]
[310322263,1704473442241,-336.92095555,0.00034,2]
[310322266,1704473442254,-1000.0,0.00034,2]
[310322448,1704473443651,-734.61316347,0.00034,2]
[310322450,1704473443663,-1953.04498719,0.00034,2]
[310322453,1704473443675,-4888.59105626,0.00034,2]
[310322738,1704473446694,-2256.104203,0.00033999,2]
[310322740,1704473446707,-4166.40355519,0.00033999,4]
[310322742,1704473446721,-20802.94450653,0.00033999,4]
[310322744,1704473446733,-16767.03504901,0.00033999,4]
[310322747,1704473446745,-7618.96183686,0.00034,2]
[310322749,1704473446757,-260.04425413,0.00034344,4]
[310322751,1704473446769,-3472.7300767,0.00034395,4]
[310322753,1704473446780,-2000.0,0.000345,2]
[310322755,1704473446791,-655.40146,0.00034521,2]
[310322758,1704473446801,-219.44027042,0.00034612,2]
[310322760,1704473446811,-155.18544951,0.00035,30]
[310322762,1704473446824,-343.43501932,0.00035099,4]
[310322764,1704473446836,-425.64190413,0.0003538,2]
[310322766,1704473446848,-621.15582809,0.0003538,2]
[310322768,1704473446861,-335.57476847,0.0003538,2]
[310322771,1704473446872,-222.0,0.00035452,2]
[310322773,1704473446886,-8000.0,0.000355,4]
[310322775,1704473446897,-500.0,0.00035616,7]
[310322777,1704473446908,-450.22585166,0.00035616,2]
[310322779,1704473446919,-500.0,0.00035616,7]
[310322781,1704473446931,-482.26769379,0.00035616,7]
[310322784,1704473446942,-508.13,0.00035616,7]
[310322786,1704473446953,-500.0,0.00035616,7]
[310322788,1704473446964,-500.0,0.00035616,7]
[310322790,1704473446976,-500.0,0.00035616,7]
[310322792,1704473446986,-728.96,0.00035616,7]
[310322794,1704473446997,-500.0,0.00035616,7]
[310322796,1704473447008,-500.0,0.00035616,7]
[310322798,1704473447017,-500.0,0.00035616,7]
[310322800,1704473447027,-1312.96,0.00035616,7]
[310322803,1704473447038,-500.0,0.00035616,7]
[310322805,1704473447048,-508.28,0.00035616,7]
[310322807,1704473447059,-676.52,0.00035616,7]
[310322809,1704473447070,-500.0,0.00035616,7]
[310322811,1704473447080,-561.2,0.00035616,7]
[310322813,1704473447091,-500.0,0.00035616,7]
[310322815,1704473447101,-15902.35882831,0.00035616,3]
[310322818,1704473447116,-4634.89117169,0.00035616,3]
[310322820,1704473447127,-335.36646238,0.00035616,7]
[310323568,1704473455780,-290.11151598,0.00017216,2]
[310323586,1704473455955,-5.92064318,0.00017216,2]
[310332877,1704473619527,-873.47257177,0.00017216,2]
[310332878,1704473619644,-17.82597085,0.00017216,2]
[310332879,1704473623815,-2112.62405833,0.00017216,2]
[310332880,1704473624072,-43.1147767,0.00017216,2]
[310332940,1704474631822,-2699.94240879,0.00019109,5]
[310332941,1704474631833,-1679.18612823,0.00019109,2]
[310332942,1704474631843,-3474.24686337,0.0001911,2]
[310332943,1704474631853,-2032.54499334,0.00019111,2]
[310332944,1704474631862,-154.86062544,0.00019112,3]
[310332945,1704474631872,-154.86062544,0.00019112,2]
[310332946,1704474631881,-606.05349002,0.00019113,2]
[310332948,1704474631891,-19640.98974528,0.00019114,2]
[310332949,1704474631900,-2705.16083223,0.00019118,2]
[310332951,1704474631910,-924.44826457,0.00019119,2]
[310332953,1704474631921,-469.16586191,0.00019123,2]
[310332955,1704474631930,-14793.2937174,0.00019125,2]
[310332957,1704474631940,-174.813953,0.00019178,2]
[310332958,1704474631949,-10547.51530941,0.00019966,2]
[310332959,1704474631960,-2508.98219236,0.00019977,2]
[310332960,1704474631969,-202.79375437,0.00019977,2]
[310332961,1704474631979,-2667.65918472,0.0001998,2]
[310332996,1704474641207,-2233.78294408,0.0001998,2]
[310333053,1704475316929,10000.0,0.00029,30]
[310333055,1704475331302,3000.0,0.00029,30]
[310333063,1704475841128,-606.05349002,0.00018757,2]
[310333064,1704475841138,-19640.98974528,0.00018757,2]
[310333065,1704475841148,-154.86062544,0.00018758,3]
[310333066,1704475841157,-3148.14500459,0.00018758,2]
[310333067,1704475841166,-373.94118377,0.00018761,2]
[310333068,1704475841176,-602.98419129,0.00018867,2]
[310333069,1704475841185,-154.89649791,0.0001887,2]
[310333070,1704475841195,-945.03415602,0.00018876,2]
[310333071,1704475841204,-1029.24597412,0.00018879,2]
[310333072,1704475841214,-2805.17049391,0.00018883,2]
[310333073,1704475841223,-230.18795146,0.00018888,2]
[310333074,1704475841232,-176.490182,0.00019178,2]
[310333075,1704475841242,-2027.50790733,0.00019978,2]
[310333076,1704475841252,-211.47793682,0.00019978,2]
[310333077,1704475841261,-272.28241767,0.00019979,2]
[310333078,1704475841271,-15935.70325584,0.0001998,2]
[310333079,1704475841280,-2463.02479176,0.00019983,2]
[310333080,1704475841290,-7043.09057587,0.0001999,2]
[310333081,1704475841299,-726.23206954,0.00019997,2]
[310333082,1704475841309,-200.0,0.0002,2]
[310333083,1704475841318,-1193.60075025,0.0002,2]
[310333084,1704475841327,-2990.69030985,0.0002,2]
[310333085,1704475841337,-154.8915759,0.0002,2]
[310333086,1704475841346,-235.68021843,0.0002,2]
[310333087,1704475841355,-676.09716813,0.0002,2]
[310333088,1704475841365,-866.93660695,0.00021,2]
[310333089,1704475841378,-410.54731281,0.00021,2]
[310333207,1704477032195,-154.82968734,0.00018883,2]
[310333208,1704477032204,-606.05349002,0.00018884,2]
[310333210,1704477032214,-1381.36682264,0.00018885,2]
[310333212,1704477032251,-297.81930559,0.00018885,2]
[310333214,1704477032261,-198.63264518,0.00018885,2]
[310333216,1704477032271,-251.69233297,0.000189,2]
[310333218,1704477032280,-268.52109404,0.0002,2]
[310333220,1704477032289,-265.20914203,0.00020898,2]
[310333222,1704477032299,-184.85176643,0.00020899,2]
[310333224,1704477032308,-20841.25599026,0.00020985,2]
[310333226,1704477032317,-19640.98974528,0.00020986,2]
[310333228,1704477032327,-1275.8,0.00020987,3]
[310333230,1704477032335,-1063.17,0.00020987,3]
[310333231,1704477032344,-641.96499442,0.00020995,2]
[310333232,1704477032353,-331.78464483,0.00020995,2]